bitfinex-derivatives/quotes_SOLF0:USTF0_20260308
["timestamp","ask_amount","ask_price","bid_price","bid_amount"]
[1772971175268,10.1990135,82.786,82.743,5.59737116]
[1772971175470,10.1990135,82.785,82.743,5.59737116]
[1772971175773,10.1990135,82.784,82.743,5.59737116]
[1772971175974,10.1990135,82.783,82.743,5.59737116]
[1772971176172,10.1990135,82.782,82.743,5.59737116]
[1772971176373,10.1990135,82.781,82.743,5.59737116]
[1772971176674,10.1990135,82.78,82.743,5.59737116]
[1772971176875,10.871,82.79,82.743,5.59737116]
[1772971177077,10.871,82.788,82.743,5.59737116]
[1772971177373,10.19958374,82.787,82.743,5.59737116]
[1772971177576,10.19958374,82.786,82.743,5.59737116]
[1772971177777,10.19958374,82.785,82.752,5.55946166]
[1772971177978,466.32033392,82.806,82.752,5.55946166]
[1772971178277,11.18074429,82.799,82.723,5.55946166]
[1772971178477,10.2011167,82.798,82.723,5.55946166]
[1772971178670,10.2011167,82.797,82.723,5.55946166]
[1772971178870,10.2011167,82.796,82.723,5.55946166]
[1772971179073,10.2011167,82.795,82.723,5.55946166]
[1772971179274,10.2011167,82.794,82.723,5.55946166]
[1772971179575,10.2011167,82.793,82.723,5.55946166]
[1772971179777,10.871,82.79,82.735,5.57800611]
[1772971179978,10.2011167,82.789,82.735,5.57800611]
[1772971180171,10.2011167,82.788,82.735,5.57800611]
[1772971180368,10.2011167,82.787,82.735,5.57800611]
[1772971180572,10.2011167,82.786,82.737,5.57800611]
[1772971180871,10.2011167,82.785,82.737,5.57800611]
[1772971181069,10.2011167,82.784,82.737,5.57800611]
[1772971181274,10.2011167,82.783,82.737,5.57800611]
[1772971181475,10.2011167,82.782,82.737,5.57800611]
[1772971181773,10.2011167,82.781,82.74,10.877]
[1772971181970,10.2011167,82.78,82.741,5.57177809]
[1772971182274,10.871,82.787,82.741,5.57177809]
[1772971182581,10.20417133,82.786,82.741,5.57177809]
[1772971182779,10.20417133,82.785,82.741,5.57177809]
[1772971182980,10.20417133,82.784,82.741,5.57177809]
[1772971183175,10.20417133,82.783,82.741,5.57177809]
[1772971183370,10.20417133,82.782,82.741,5.57177809]
[1772971183575,10.20417133,82.781,82.741,5.57177809]
[1772971183875,10.20417133,82.78,82.741,5.57177809]
[1772971184076,10.871,82.787,82.741,5.57177809]
[1772971184283,10.20520395,82.786,82.741,5.57177809]
[1772971184480,10.20520395,82.785,82.741,5.57177809]
[1772971184778,10.20520395,82.784,82.741,5.57177809]
[1772971184976,10.20520395,82.783,82.741,5.57177809]
[1772971185176,10.20520395,82.782,82.741,5.57177809]
[1772971185377,10.20520395,82.781,82.741,5.57177809]
[1772971185578,10.20520395,82.78,82.741,5.57177809]
[1772971185782,10.20520395,82.779,82.741,5.57177809]
[1772971185979,10.871,82.787,82.741,5.57177809]
[1772971186183,10.20586152,82.786,82.741,5.57177809]
[1772971186384,10.20586152,82.785,82.741,5.57177809]
[1772971186682,10.20586152,82.784,82.741,5.57177809]
[1772971186883,10.20586152,82.783,82.741,5.57177809]
[1772971187083,10.20586152,82.782,82.741,5.57177809]
[1772971187384,10.20586152,82.781,82.741,5.57177809]
[1772971187583,10.20586152,82.78,82.741,5.57177809]
[1772971187882,10.20586152,82.779,82.741,5.57177809]
[1772971188081,10.871,82.787,82.741,5.57177809]
[1772971188379,10.2086399,82.786,82.741,5.57177809]
[1772971188581,10.2086399,82.785,82.741,5.57177809]
[1772971188783,10.2086399,82.784,82.741,5.57177809]
[1772971189077,10.2086399,82.783,82.741,5.57177809]
[1772971189285,10.2086399,82.782,82.741,5.57177809]
[1772971189582,10.2086399,82.781,82.741,5.57177809]
[1772971189784,10.2086399,82.78,82.741,5.57177809]
[1772971190083,10.871,82.787,82.741,5.57177809]
[1772971190084,10.2086399,82.779,82.741,5.57177809]
[1772971190280,10.2086399,82.778,82.741,5.57177809]
[1772971190477,10.871,82.787,82.741,5.57177809]
[1772971190680,10.21232999,82.786,82.741,5.57177809]
[1772971190879,10.21232999,82.785,82.741,5.57177809]
[1772971191074,10.21232999,82.784,82.741,5.57177809]
[1772971191381,10.21232999,82.783,82.741,5.57177809]
[1772971191580,10.871,82.787,82.741,5.57177809]
[1772971191581,10.21232999,82.782,82.741,5.57177809]
[1772971191782,10.21232999,82.781,82.741,5.57177809]
[1772971191982,10.21232999,82.78,82.741,5.57177809]
[1772971192282,10.21232999,82.779,82.741,5.57177809]
[1772971192581,10.21232999,82.778,82.741,5.57177809]
[1772971192782,10.21232999,82.777,82.741,5.57177809]
[1772971193081,10.871,82.787,82.741,5.57177809]
[1772971193282,10.21488819,82.786,82.741,5.57177809]
[1772971193480,10.21488819,82.785,82.741,5.57177809]
[1772971193684,10.21488819,82.784,82.741,5.57177809]
[1772971193877,10.21488819,82.783,82.741,5.57177809]
[1772971194073,10.21488819,82.782,82.741,5.57177809]
[1772971194284,10.21488819,82.781,82.741,5.57177809]
[1772971194484,10.21488819,82.781,82.679,37.09299376]
[1772971194485,10.873,82.775,82.691,5.58525122]
[1772971194678,10.21488819,82.774,82.691,5.58525122]
[1772971194877,10.21488819,82.773,82.691,5.58525122]
[1772971195074,10.21488819,82.772,82.691,5.58525122]
[1772971195273,10.21488819,82.771,82.691,5.58525122]
[1772971195479,10.21488819,82.77,82.691,5.58525122]
[1772971195683,10.21488819,82.769,82.691,5.58525122]
[1772971195885,10.873,82.775,82.725,5.58370573]
[1772971196080,10.21079581,82.774,82.725,5.58370573]
[1772971196282,10.872,82.783,82.725,5.58370573]
[1772971196587,10.21133118,82.782,82.725,5.58370573]
[1772971196785,10.21133118,82.781,82.73,5.58370573]
[1772971196984,10.21133118,82.78,82.73,5.58370573]
[1772971197179,10.21133118,82.779,82.73,5.58370573]
[1772971197385,10.21133118,82.778,82.73,5.58370573]
[1772971197685,10.21133118,82.777,82.73,5.58370573]
[1772971197886,10.21133118,82.776,82.732,5.58271688]
[1772971198180,10.21133118,82.775,82.732,5.58271688]
[1772971198388,10.872,82.783,82.732,5.58271688]
[1772971198389,10.21133118,82.774,82.732,5.58271688]
[1772971198583,10.872,82.783,82.732,5.58271688]
[1772971198785,10.872,82.781,82.732,5.58271688]
[1772971198990,10.21077604,82.78,82.732,5.58271688]
[1772971199190,10.21077604,82.779,82.732,5.58271688]
[1772971199387,10.21077604,82.778,82.732,5.58271688]
[1772971199586,10.21077604,82.777,82.732,5.58271688]
[1772971199786,10.872,82.781,82.732,5.58271688]
[1772971202991,10.872,82.781,82.734,5.58179599]
[1772971203191,10.871,82.789,82.734,5.58179599]
[1772971203385,10.2211357,82.788,82.734,5.58179599]
[1772971203582,10.2211357,82.787,82.719,10.88]
[1772971203781,10.2211357,82.787,82.593,169.513]
[1772971203782,10.875,82.757,82.691,5.58319572]
[1772971204083,10.2211357,82.786,82.711,5.58319572]
[1772971204084,10.2211357,82.756,82.711,5.58319572]
[1772971204281,10.871,82.787,82.711,5.58319572]
[1772971204486,10.21115034,82.786,82.711,5.58319572]
[1772971204691,10.21115034,82.785,82.711,5.58319572]
[1772971204891,10.21115034,82.784,82.711,5.58319572]
[1772971205189,10.21115034,82.783,82.711,5.58319572]
[1772971205388,10.21115034,82.782,82.711,5.58319572]
[1772971205592,10.21115034,82.781,82.711,5.58319572]
[1772971205893,10.873,82.774,82.713,5.60531529]
[1772971206186,10.20637871,82.773,82.713,5.60531529]
[1772971206491,10.20637871,82.772,82.713,5.60531529]
[1772971206696,10.20637871,82.771,82.713,5.60531529]
[1772971206993,10.20637871,82.77,82.716,5.60531529]
[1772971207193,10.873,82.774,82.716,5.60531529]
[1772971207394,10.874,82.768,82.716,5.60531529]
[1772971209494,10.875,82.759,82.697,5.53668691]
[1772971209793,10.19443753,82.758,82.697,5.53668691]
[1772971209994,10.19443753,82.757,82.697,5.53668691]
[1772971210193,10.19443753,82.756,82.7,5.53668691]
[1772971210391,10.19443753,82.755,82.7,5.53668691]
[1772971210592,10.875,82.759,82.7,5.53668691]
[1772971210797,10.1896422,82.758,82.7,5.53668691]
[1772971210995,10.1896422,82.757,82.7,5.53668691]
[1772971211191,10.1896422,82.756,82.7,5.53668691]
[1772971211397,10.1896422,82.755,82.7,5.53668691]
[1772971211588,2.64296447,82.753,82.69,10.37068691]
[1772971211793,2.64296447,82.751,82.69,10.37068691]
[1772971211995,2.64296447,82.749,82.69,10.37068691]
[1772971212198,2.64296447,82.747,82.69,10.37068691]
[1772971212397,2.64296447,82.745,82.69,10.37068691]
[1772971213500,2.64296447,82.745,82.691,3.91759636]
[1772971213902,2.7121582,82.743,82.691,3.91759636]
[1772971214092,2.7121582,82.741,82.691,3.91759636]
[1772971219100,2.7121582,82.741,82.693,3.91759636]
[1772971219702,2.7121582,82.741,82.695,3.91759636]
[1772971221004,2.7121582,82.741,82.698,3.91759636]
[1772971232420,2.65251272,82.735,82.698,3.91759636]
[1772971234616,2.6342599,82.762,82.715,3.91847896]
[1772971235512,2.61196419,82.761,82.719,3.91847896]
[1772971240218,2.76300311,82.753,82.659,3.91847896]
[1772971240417,2.76300311,82.751,82.659,3.91847896]
[1772971240619,2.76300311,82.749,82.659,3.91847896]
[1772971240820,2.76300311,82.747,82.659,3.91847896]
[1772971241715,2.79868491,82.766,82.698,3.91847896]
[1772971241916,2.79868491,82.764,82.698,3.91847896]
[1772971242113,2.79868491,82.762,82.698,3.91847896]
[1772971242318,2.79868491,82.76,82.698,3.91847896]
[1772971242520,2.79868491,82.758,82.698,3.91847896]
[1772971242918,2.79868491,82.758,82.708,3.91847896]
[1772971244321,2.82094289,82.755,82.708,3.91847896]
[1772971245918,2.81770068,82.753,82.708,3.91847896]
[1772971249012,2.8425247,82.751,82.708,3.91847896]
[1772971250923,2.88415145,82.748,82.708,3.91847896]
[1772971258430,2.88415145,82.748,82.714,3.91847896]
[1772971259735,2.85945135,82.764,82.716,3.91847896]
[1772971259932,11.27488974,82.774,82.716,3.91847896]
[1772971259933,13.2776269,82.763,82.716,3.91847896]
[1772971260136,13.2776269,82.762,82.716,3.91847896]
[1772971260432,13.2776269,82.761,82.716,3.91847896]
[1772971260737,10.41817555,82.76,82.725,3.91847896]
[1772971261036,10.41817555,82.759,82.725,3.91847896]
[1772971261232,10.41817555,82.758,82.725,3.91847896]
[1772971261436,10.41817555,82.757,82.725,3.91847896]
[1772971261633,10.41817555,82.756,82.725,3.91847896]
[1772971261840,2.85945135,82.761,82.725,3.91847896]
[1772971262133,10.41536995,82.76,82.725,3.91847896]
[1772971262332,10.41536995,82.759,82.725,3.91847896]
[1772971262528,2.85645191,82.771,82.725,3.91847896]
[1772971262732,10.20162351,82.77,82.725,3.91847896]
[1772971262933,10.20162351,82.769,82.725,3.91847896]
[1772971263241,2.85645191,82.771,82.727,4.01963425]
[1772971263242,10.20162351,82.768,82.727,4.01963425]
[1772971263534,2.85645191,82.771,82.727,4.01963425]
[1772971263535,10.20162351,82.767,82.727,4.01963425]
[1772971263735,10.20162351,82.766,82.727,4.01963425]
[1772971263936,10.20162351,82.765,82.727,4.01963425]
[1772971264236,10.20162351,82.764,82.727,4.01963425]
[1772971264536,2.85645191,82.771,82.727,4.01963425]
[1772971264732,10.2015523,82.77,82.734,10.878]
[1772971264927,10.2015523,82.769,82.735,3.90114109]
[1772971265128,10.2015523,82.768,82.735,3.90114109]
[1772971265431,2.85645191,82.771,82.735,3.90114109]
[1772971265738,10.19860769,82.77,82.735,3.90114109]
[1772971265940,10.19860769,82.769,82.735,3.90114109]
[1772971266139,10.19860769,82.768,82.735,3.90114109]
[1772971266340,2.85645191,82.771,82.735,3.90114109]
[1772971268242,2.8942583,82.781,82.737,3.90114109]
[1772971268442,13.07809371,82.78,82.737,3.90114109]
[1772971268737,2.8942583,82.778,82.739,3.90114109]
[1772971269734,2.90583782,82.776,82.739,3.90114109]
[1772971272334,2.90626408,82.791,82.741,3.90114109]
[1772971272642,2.90626408,82.79,82.741,3.90114109]
[1772971272843,2.90626408,82.789,82.741,3.90114109]
[1772971273245,2.90626408,82.787,82.741,3.90114109]
[1772971273446,2.90626408,82.785,82.741,3.90114109]
[1772971273642,23.48774511,82.798,82.741,3.90114109]
[1772971273643,2.87163344,82.783,82.741,3.90114109]
[1772971273843,2.87163344,82.781,82.741,3.90114109]
[1772971274143,2.87163344,82.779,82.741,3.90114109]
[1772971274342,2.87163344,82.777,82.741,3.90114109]
[1772971276754,2.88997355,82.791,82.741,3.90114109]
[1772971277852,2.88997355,82.791,82.743,3.90114109]
[1772971278652,2.88997355,82.791,82.747,3.90114109]
[1772971278954,2.89426765,82.804,82.747,3.90114109]
[1772971279154,2.89426765,82.802,82.747,3.90114109]
[1772971279354,2.89426765,82.8,82.747,3.90114109]
[1772971279648,2.88097437,82.798,82.747,3.90114109]
[1772971279854,2.88097437,82.798,82.751,3.90114109]
[1772971281254,2.88097437,82.797,82.751,3.90114109]
[1772971281454,2.89426597,82.795,82.751,3.90114109]
[1772971284354,2.89426597,82.795,82.754,3.90114109]
[1772971288864,2.89426597,82.795,82.743,3.90114109]
[1772971290861,2.89560007,82.793,82.743,3.90114109]
[1772971291764,2.84793916,82.791,82.743,3.90114109]
[1772971293661,2.83954915,82.789,82.743,3.90114109]
[1772971295967,2.83954915,82.789,82.744,3.8852656]
[1772971296568,2.83954915,82.789,82.748,3.8852656]
[1772971297866,2.83954915,82.789,82.751,3.8852656]
[1772971298063,13.70525486,82.797,82.751,3.8852656]
[1772971298266,2.83525486,82.797,82.753,3.8852656]
[1772971301172,2.83503754,82.795,82.744,3.8852656]
[1772971302774,2.82195907,82.794,82.744,3.8852656]
[1772971304170,2.83762172,82.792,82.744,3.8852656]
[1772971307277,2.8402401,82.79,82.744,3.8852656]
[1772971308170,2.83668794,82.788,82.744,3.8852656]
[1772971311275,2.85208264,82.786,82.744,3.8852656]
[1772971312772,294.01451751,82.809,82.735,10.878]
[1772971312773,2.86367211,82.783,82.735,10.878]
[1772971312969,2.86367211,82.781,82.736,3.8852656]
[1772971313276,2.86367211,82.791,82.736,3.8852656]
[1772971313476,2.86367211,82.789,82.736,3.8852656]
[1772971313669,2.86409738,82.787,82.736,3.8852656]
[1772971313976,13.05806389,82.786,82.736,3.8852656]
[1772971314176,10.19430578,82.785,82.736,3.8852656]
[1772971314379,2.86409738,82.786,82.736,3.8852656]
[1772971314573,10.19431368,82.785,82.736,3.8852656]
[1772971314774,2.86409738,82.786,82.745,3.8852656]
[1772971314974,2.86409738,82.784,82.745,3.8852656]
[1772971316373,2.7505141,82.789,82.747,3.8852656]
[1772971316579,10.2022743,82.788,82.747,3.8852656]
[1772971316777,10.2022743,82.787,82.747,3.8852656]
[1772971316977,10.2022743,82.786,82.747,3.8852656]
[1772971317279,2.7505141,82.789,82.747,3.8852656]
[1772971317280,10.2022743,82.785,82.747,3.8852656]
[1772971317581,10.2022743,82.784,82.749,3.8852656]
[1772971317883,2.75566616,82.802,82.749,3.8852656]
[1772971318068,10.20394745,82.801,82.749,3.8852656]
[1772971318269,10.20394745,82.8,82.749,3.8852656]
[1772971318472,10.20394745,82.799,82.758,3.8852656]
[1772971318674,10.20394745,82.798,82.758,3.8852656]
[1772971318976,10.20394745,82.797,82.758,3.8852656]
[1772971319178,10.20394745,82.796,82.758,3.8852656]
[1772971319378,2.75566616,82.809,82.764,3.8852656]
[1772971319576,2.75965507,82.807,82.764,3.8852656]
[1772971319784,10.20639781,82.806,82.764,3.8852656]
[1772971319980,10.20639781,82.805,82.764,3.8852656]
[1772971320177,10.20639781,82.804,82.767,3.8852656]
[1772971320377,10.20639781,82.803,82.767,3.8852656]
[1772971320585,2.75965507,82.818,82.767,3.8852656]
[1772971320778,12.96981403,82.817,82.767,3.8852656]
[1772971321082,10.867,82.819,82.767,3.8852656]
[1772971321083,12.96981403,82.816,82.767,3.8852656]
[1772971321275,10.867,82.819,82.767,3.8852656]
[1772971321276,12.96981403,82.815,82.767,3.8852656]
[1772971321472,10.867,82.819,82.767,3.8852656]
[1772971321473,2.81948344,82.813,82.767,3.8852656]
[1772971321676,2.81948344,82.811,82.767,3.8852656]
[1772971321878,2.81948344,82.809,82.769,3.8852656]
[1772971322079,10.21015896,82.808,82.769,3.8852656]
[1772971322276,10.21781194,82.807,82.771,3.8852656]
[1772971322478,2.81948344,82.826,82.771,3.8852656]
[1772971322783,10.866,82.828,82.771,3.8852656]
[1772971322784,2.81705409,82.824,82.771,3.8852656]
[1772971322983,10.866,82.828,82.781,4.04138764]
[1772971322984,13.03611171,82.823,82.781,4.04138764]
[1772971323281,10.21905762,82.822,82.781,4.04138764]
[1772971323483,3.93929351,82.843,82.781,4.04138764]
[1772971323883,3.93929351,82.843,82.789,3.22197218]
[1772971324885,3.78416845,82.841,82.789,3.22197218]
[1772971325484,3.78416845,82.837,82.789,3.22197218]
[1772971326888,3.78416845,82.837,82.793,3.21110311]
[1772971327790,3.78416845,82.834,82.782,3.21471303]
[1772971328582,3.78416845,82.825,82.733,3.21471303]
[1772971329083,3.78416845,82.794,82.745,3.21471303]
[1772971329685,3.78416845,82.81,82.747,3.22937208]
[1772971330387,3.78416845,82.81,82.672,37.09299376]
[1772971330388,3.78416845,82.81,82.75,3.22937208]
[1772971331290,3.78416845,82.849,82.75,3.22937208]
[1772971331990,3.78416845,82.823,82.752,3.21958403]
[1772971333889,3.78416845,82.814,82.757,3.24475554]
[1772971335782,3.78416845,82.812,82.761,3.30098033]
[1772971336781,3.78416845,82.812,82.762,10.875]
[1772971336985,3.78416845,82.812,82.763,3.30098033]
[1772971338191,3.78416845,82.812,82.767,3.30512216]
[1772971349903,3.78416845,82.812,82.769,3.38167089]
[1772971357703,3.94490242,82.809,82.769,3.38167089]
[1772971357908,3.94490242,82.807,82.769,3.38167089]
[1772971358916,3.94490242,82.805,82.769,3.38167089]
[1772971363421,3.94490242,82.803,82.769,3.38167089]
[1772971363620,3.94490242,82.803,82.77,3.40301487]
[1772971364516,3.94490242,82.814,82.77,3.40301487]
[1772971364710,10.14487488,82.813,82.77,3.40301487]
[1772971364915,10.14487488,82.812,82.77,3.40301487]
[1772971365219,10.14487488,82.811,82.77,3.40301487]
[1772971365422,10.14487488,82.81,82.77,3.40301487]
[1772971365614,10.14487488,82.809,82.77,3.40301487]
[1772971365816,3.94490242,82.814,82.77,3.40301487]
[1772971366116,3.94490242,82.812,82.77,3.40301487]
[1772971366314,14.08917968,82.811,82.77,3.40301487]
[1772971366516,10.14427726,82.81,82.77,3.40301487]
[1772971366710,10.14427726,82.809,82.77,3.40301487]
[1772971366916,3.94490242,82.811,82.77,3.40301487]
[1772971367213,10.14391476,82.81,82.77,3.40301487]
[1772971367414,10.14391476,82.809,82.77,3.40301487]
[1772971367615,3.94490242,82.811,82.77,3.40301487]
[1772971367915,10.14390217,82.81,82.774,3.44087649]
[1772971368114,10.14390217,82.809,82.774,3.44087649]
[1772971368315,3.94490242,82.811,82.774,3.44087649]
[1772971368617,10.14414526,82.81,82.774,3.44087649]
[1772971368816,10.14414526,82.809,82.774,3.44087649]
[1772971369016,3.94490242,82.811,82.774,3.44087649]
[1772971369218,10.14414111,82.81,82.774,3.44087649]
[1772971369415,10.14414111,82.809,82.774,3.44087649]
[1772971369720,10.14414111,82.808,82.774,3.44087649]
[1772971369922,3.94490242,82.811,82.774,3.44087649]
[1772971370121,10.14625889,82.81,82.774,3.44087649]
[1772971370422,10.14625889,82.809,82.774,3.44087649]
[1772971370623,10.14625889,82.808,82.774,3.44087649]
[1772971370917,3.94490242,82.811,82.774,3.44087649]
[1772971371123,10.14767717,82.81,82.774,3.44087649]
[1772971371322,10.14767717,82.809,82.774,3.44087649]
[1772971371514,10.14767717,82.808,82.774,3.44087649]
[1772971371713,10.14767717,82.807,82.774,3.44087649]
[1772971371919,10.14767717,82.806,82.774,3.44087649]
[1772971372113,3.94490242,82.811,82.774,3.44087649]
[1772971372314,10.16040803,82.81,82.774,3.44087649]
[1772971372524,10.16040803,82.809,82.774,3.44087649]
[1772971372721,10.16040803,82.808,82.774,3.44087649]
[1772971372922,10.16040803,82.807,82.774,3.44087649]
[1772971373121,10.16040803,82.806,82.774,3.44087649]
[1772971373322,10.16040803,82.805,82.774,3.44087649]
[1772971373522,10.16040803,82.804,82.774,3.44087649]
[1772971373723,10.16040803,82.803,82.774,3.44087649]
[1772971373925,10.16040803,82.802,82.774,3.44087649]
[1772971374225,10.16040803,82.801,82.776,3.43909048]
[1772971374427,3.94490242,82.821,82.776,3.43909048]
[1772971375923,3.94490242,82.821,82.78,3.4853519]
[1772971376321,3.94490242,82.821,82.783,10.872]
[1772971376526,3.94490242,82.821,82.784,3.4853519]
[1772971377026,3.94490242,82.831,82.786,3.4853519]
[1772971379033,3.94490242,82.831,82.788,3.48568458]
[1772971379429,3.94490242,82.842,82.797,3.48568458]
[1772971379824,3.94490242,82.842,82.758,3.49003394]
[1772971380130,3.94490242,82.842,82.79,3.49003394]
[1772971380131,3.94490242,82.841,82.79,3.49003394]
[1772971381834,3.94490242,82.841,82.802,3.47898834]
[1772971382130,3.94490242,82.851,82.802,3.47898834]
[1772971383334,3.94490242,82.851,82.804,3.47893806]
[1772971384032,3.94490242,82.851,82.808,3.48066001]
[1772971384738,3.94490242,82.851,82.814,3.48064802]
[1772971384937,3.94490242,82.851,82.761,3.48064802]
[1772971385135,3.71267095,82.849,82.799,10.87]
[1772971385437,3.71267095,82.849,82.8,3.48064802]
[1772971386834,3.71267095,82.849,82.803,3.48544374]
[1772971387837,3.71267095,82.849,82.805,3.5216772]
[1772971389041,3.71267095,82.849,82.809,3.5216772]
[1772971389735,3.71267095,82.849,82.812,3.51662265]
[1772971389940,3.71267095,82.865,82.812,3.51662265]
[1772971390845,3.71267095,82.865,82.817,3.51662265]
[1772971391241,3.71267095,82.863,82.817,3.51662265]
[1772971393444,3.71267095,82.863,82.823,3.50660803]
[1772971394743,3.71267095,82.863,82.824,10.866]
[1772971395138,3.71267095,82.863,82.824,14.37487717]
[1772971397050,3.71267095,82.863,82.824,3.50887717]
[1772971397239,3.71267095,82.863,82.816,10.867]
[1772971397443,3.71267095,82.863,82.817,3.50898944]
[1772971397948,3.71267095,82.863,82.821,3.53060961]
[1772971399746,3.71267095,82.863,82.811,3.53068929]
[1772971400345,3.71267095,82.862,82.811,3.53068929]
[1772971401750,3.71267095,82.862,82.815,3.56616632]
[1772971402749,3.71267095,82.862,82.819,10.867]
[1772971402950,3.71267095,82.862,82.82,3.56616632]
[1772971403349,3.71267095,82.862,82.828,10.866]
[1772971404855,3.71267095,82.862,82.829,3.56604664]
[1772971410754,3.71267095,82.872,82.833,3.56565547]
[1772971424765,3.71267095,82.872,82.835,3.56845303]
[1772971433978,3.71267095,82.872,82.825,3.60568069]
[1772971434881,3.81596034,82.869,82.825,3.60568069]
[1772971438981,3.81596034,82.869,82.829,3.65551307]
[1772971439686,3.81596034,82.869,82.835,3.66401033]
[1772971443384,3.81596034,82.869,82.782,3.67168995]
[1772971443589,4.05338296,82.859,82.808,3.66818885]
[1772971444793,4.05338296,82.859,82.816,3.668182]
[1772971444982,4.05338296,82.89,82.816,3.668182]
[1772971445187,4.05338296,82.888,82.816,3.668182]
[1772971445386,4.05338296,82.886,82.816,3.668182]
[1772971445587,4.05338296,82.884,82.816,3.668182]
[1772971445788,4.05338296,82.882,82.831,3.69256713]
[1772971445983,4.05338296,82.88,82.831,3.69256713]
[1772971446195,4.05338296,82.878,82.831,3.69256713]
[1772971446495,11.86986573,82.899,82.77,62.0]
[1772971446496,4.05338296,82.888,82.833,3.69256713]
[1772971447796,4.05338296,82.888,82.84,3.70832439]
[1772971448594,4.05338296,82.888,82.788,21.743]
[1772971448595,4.05338296,82.888,82.843,3.70832439]
[1772971449494,4.05338296,82.888,82.845,3.70832439]
[1772971452001,4.05338296,82.888,82.835,3.66678106]
[1772971452996,4.05338296,82.888,82.838,3.66678106]
[1772971453800,4.05338296,82.888,82.84,3.64760635]
[1772971454896,4.05338296,82.887,82.84,3.64760635]
[1772971456097,4.05338296,82.887,82.842,3.63972628]
[1772971456298,4.05338296,82.897,82.842,3.63972628]
[1772971457796,4.05338296,82.897,82.846,3.62305365]
[1772971458700,4.05338296,82.894,82.846,3.62305365]
[1772971459101,4.05338296,82.894,82.848,3.62305365]
[1772971459799,4.05338296,82.894,82.855,10.862]
[1772971461298,4.05338296,82.894,82.856,3.63081536]
[1772971461700,4.05338296,82.894,82.855,10.862]
[1772971462394,4.05338296,82.894,82.856,3.63065493]
[1772971462594,4.05338296,82.894,82.86,3.63065493]
[1772971463306,4.05338296,82.916,82.862,3.63065493]
[1772971463507,4.05338296,82.914,82.862,3.63065493]
[1772971463707,4.05338296,82.912,82.862,3.63065493]
[1772971463906,4.05338296,82.91,82.862,3.63065493]
[1772971464909,4.05338296,82.91,82.865,3.63901572]
[1772971465408,4.05338296,82.91,82.867,3.63901572]
[1772971470813,4.05338296,82.91,82.869,3.63395871]
[1772971471914,4.05338296,82.91,82.872,3.63401933]
[1772971474419,4.05338296,82.91,82.874,3.71238564]
[1772971474720,3.79067796,82.924,82.874,3.71238564]
[1772971475723,3.79067796,82.924,82.877,3.71238564]
[1772971475918,296.42897694,82.931,82.877,3.71238564]
[1772971476619,3.79067796,82.935,82.877,3.71238564]
[1772971476817,3.79067796,82.935,82.835,12.07]
[1772971476818,3.79067796,82.935,82.894,3.71238564]
[1772971477622,3.79067796,82.934,82.866,3.71238564]
[1772971478822,3.79067796,82.934,82.884,3.71238564]
[1772971479427,3.79067796,82.931,82.884,3.71238564]
[1772971480219,3.79067796,82.966,82.889,3.71238564]
[1772971480424,3.79067796,82.964,82.889,3.71238564]
[1772971480628,3.79067796,82.962,82.889,3.71238564]
[1772971480827,3.79067796,82.96,82.889,3.71238564]
[1772971481434,3.79067796,82.96,82.904,3.71238564]
[1772971482840,3.79067796,82.96,82.912,3.71238564]
[1772971483433,3.79067796,82.978,82.923,3.71238564]
[1772971484442,3.79067796,82.975,82.908,3.71238564]
[1772971485937,3.79067796,82.963,82.91,14.56738564]
[1772971486140,3.79067796,82.963,82.911,3.71238564]
[1772971487643,3.79067796,82.96,82.911,3.71238564]
[1772971487839,3.79067796,82.96,82.854,21.725]
[1772971488038,3.79067796,82.96,82.855,3.71238564]
[1772971488242,3.79067796,82.958,82.855,3.71238564]
[1772971488740,3.79067796,82.934,82.881,10.859]
[1772971489845,3.79067796,82.931,82.881,10.859]
[1772971491444,3.79067796,82.926,82.878,3.71238564]
[1772971492743,3.79067796,82.924,82.878,3.71238564]
[1772971499150,3.79067796,82.924,82.879,3.71238564]
[1772971500954,3.79067796,82.921,82.836,3.71238564]
[1772971501858,3.79067796,82.917,82.868,14.57338564]
[1772971502047,3.79067796,82.917,82.869,3.71238564]
[1772971503853,3.79067796,82.917,82.872,3.70188711]
[1772971504853,3.79067796,82.917,82.873,14.56188711]
[1772971505157,3.79067796,82.917,82.874,3.70188711]
[1772971506751,3.79067796,82.917,82.878,10.859]
[1772971506955,3.79067796,82.917,82.879,3.70188711]
[1772971507554,10.853,82.926,82.879,3.70188711]
[1772971507952,3.70907473,82.925,82.879,3.70188711]
[1772971511156,3.70907473,82.925,82.88,10.859]
[1772971511460,3.70907473,82.925,82.88,14.56088711]
[1772971511753,3.70907473,82.925,82.881,3.70188711]
[1772971516359,3.70907473,82.922,82.86,3.70188711]
[1772971516563,21.701,82.949,82.86,3.70188711]
[1772971516564,3.70907473,82.92,82.86,3.70188711]
[1772971516764,3.70907473,82.92,82.835,653.61992483]
[1772971516765,3.70907473,82.918,82.85,3.70188711]
[1772971516965,3.70907473,82.901,82.85,3.70188711]
[1772971518962,3.70907473,82.899,82.852,3.70188711]
[1772971519757,3.70907473,82.899,82.853,10.863]